fUSD/lending_fUSD_20250421
["ID","MTS","AMOUNT","RATE_DAILY","PERIOD"]
[358493018,1745209850067,-500.0,0.00063013,120]
[358493019,1745209850076,-500.0,0.00063013,120]
[358493020,1745209850086,-774.21,0.00063013,120]
[358493021,1745209850095,-523.30995052,0.00063013,120]
[358493022,1745209850105,-524.86949902,0.00063013,120]
[358493023,1745209850114,-3295.78,0.00063013,2]
[358493024,1745209850124,-627.4494026,0.00063013,120]
[358493025,1745209850133,-305.73654614,0.00063013,120]
[358493026,1745209850142,-500.0,0.00063013,120]
[358493027,1745209850151,-500.0,0.00063013,120]
[358493028,1745209850160,-500.0,0.00063013,120]
[358493029,1745209850169,-2158.59,0.00063013,120]
[358493030,1745209850178,-500.0,0.00063013,120]
[358493031,1745209850187,-341.0846403,0.00063013,120]
[358493032,1745209850196,-500.0,0.00063013,120]
[358493033,1745209850206,-291.882179,0.00063013,120]
[358493034,1745209850215,-1847.89,0.00063013,120]
[358493035,1745209850224,-500.0,0.00063013,120]
[358493036,1745209850233,-500.0,0.00063013,120]
[358493037,1745209850242,-500.0,0.00063013,120]
[358493038,1745209850252,-533.26390759,0.00063013,120]
[358493039,1745209850261,-500.0,0.00063013,120]
[358493040,1745209850271,-500.0,0.00063013,120]
[358493041,1745209850280,-500.0,0.00063013,120]
[358493042,1745209850289,-598.26690595,0.00063013,120]
[358493043,1745209850299,-500.0,0.00063013,120]
[358493044,1745209850308,-582.29981595,0.00063013,120]
[358493045,1745209850317,-2000.0,0.00063013,120]
[358493046,1745209850327,-500.0,0.00063013,120]
[358493047,1745209850336,-500.0,0.00063013,120]
[358493048,1745209850345,-564.48780344,0.00063013,120]
[358493049,1745209850354,-500.0,0.00063013,120]
[358493050,1745209850363,-500.0,0.00063013,120]
[358493051,1745209850373,-500.0,0.00063013,120]
[358493052,1745209850381,-500.0,0.00063013,120]
[358493053,1745209850391,-500.0,0.00063013,120]
[358493054,1745209850400,-534.79878683,0.00063013,120]
[358493055,1745209850410,-519.75703681,0.00063013,120]
[358493056,1745209850419,-500.0,0.00063013,120]
[358493057,1745209850429,-500.0,0.00063013,120]
[358493058,1745209850438,-500.0,0.00063013,120]
[358493059,1745209850448,-500.0,0.00063013,120]
[358493060,1745209850458,-500.0,0.00063013,120]
[358493061,1745209850467,-600.26624842,0.00063013,120]
[358493062,1745209850477,-500.0,0.00063013,120]
[358493063,1745209850486,-500.0,0.00063013,120]
[358493064,1745209850496,-1383.2,0.00063013,120]
[358493065,1745209850506,-500.0,0.00063013,120]
[358493066,1745209850515,-500.0,0.00063013,120]
[358493067,1745209850525,-514.61248297,0.00063013,120]
[358493068,1745209850533,-527.39296394,0.00063013,120]
[358493069,1745209850543,-500.0,0.00063013,120]
[358493070,1745209850552,-500.0,0.00063013,120]
[358493071,1745209850561,-500.0,0.00063013,120]
[358493072,1745209850571,-545.20865708,0.00063013,120]
[358493073,1745209850580,-500.0,0.00063013,120]
[358493074,1745209850590,-528.07591535,0.00063013,120]
[358493075,1745209850598,-1153.59,0.00063013,120]
[358493076,1745209850608,-590.2124972,0.00063013,16]
[358493077,1745209850617,-500.0,0.00063013,120]
[358493078,1745209850627,-371.2802119,0.00063013,120]
[358493079,1745209850635,-500.0,0.00063013,120]
[358493080,1745209850646,-500.0,0.00063013,120]
[358493081,1745209850656,-517.95427251,0.00063013,120]
[358493082,1745209850665,-500.0,0.00063013,120]
[358493083,1745209850675,-500.0,0.00063013,120]
[358493084,1745209850684,-594.35943558,0.00063013,120]
[358493085,1745209850693,-500.0,0.00063013,120]
[358493086,1745209850703,-502.52436645,0.00063013,120]
[358493087,1745209850713,-500.0,0.00063013,120]
[358493088,1745209850723,-500.0,0.00063013,120]
[358493089,1745209850732,-553.68960114,0.00063013,120]
[358493090,1745209850742,-500.16278886,0.00063013,2]
[358493091,1745209850751,-500.0,0.00063013,120]
[358493092,1745209850761,-500.0,0.00063013,120]
[358493093,1745209850770,-500.0,0.00063013,120]
[358493094,1745209850780,-402.56895293,0.00063013,2]
[358493095,1745209850789,-500.0,0.00063013,120]
[358493096,1745209850799,-500.0,0.00063013,120]
[358493097,1745209850809,-500.0,0.00063013,120]
[358493098,1745209850819,-547.93366165,0.00063013,120]
[358493099,1745209850829,-1663.3,0.00063013,7]
[358493100,1745209850839,-500.0,0.00063013,120]
[358493101,1745209850848,-501.62396758,0.00063013,2]
[358493102,1745209850857,-1441.0,0.00063013,120]
[358493103,1745209850867,-571.61021908,0.00063013,120]
[358493104,1745209850876,-655.8,0.00063013,120]
[358493105,1745209850885,-500.0,0.00063013,120]
[358493106,1745209850895,-1107.39,0.00063013,120]
[358493107,1745209850904,-500.0,0.00063013,2]
[358493108,1745209850913,-530.00277573,0.00063013,120]
[358493109,1745209850922,-500.0,0.00063013,120]
[358493110,1745209850931,-525.15,0.00063013,120]
[358493111,1745209850940,-2272.0,0.00063014,120]
[358493112,1745209850950,-904.0,0.00063014,120]
[358493113,1745209850959,-500.0,0.00063014,120]
[358493114,1745209850969,-500.0,0.00063014,120]
[358493115,1745209850978,-500.0,0.00063014,120]
[358493116,1745209850987,-500.0,0.00063014,120]
[358493117,1745209850998,-500.0,0.00063014,120]
[358493118,1745209851009,-151.0,0.00063014,120]
[358493119,1745209851019,-229.037476,0.00063014,120]
[358493120,1745209851028,-186.83434,0.00063014,120]
[358493121,1745209851037,-151.0,0.00063014,120]
[358493122,1745209851047,-176.8979223,0.00063014,120]
[358493123,1745209851057,-956.36935609,0.00063014,120]
[358493124,1745209851066,-956.36935609,0.00063014,120]
[358493125,1745209851076,-956.36935609,0.00063014,120]
[358493126,1745209851086,-956.36935609,0.00063014,120]
[358493127,1745209851095,-956.36935609,0.00063014,120]
[358493128,1745209851105,-956.36935609,0.00063014,120]
[358493129,1745209851114,-956.36935609,0.00063014,120]
[358493130,1745209851123,-956.36935609,0.00063014,120]
[358493131,1745209851134,-956.36935609,0.00063014,120]
[358493132,1745209851143,-956.36935609,0.00063014,120]
[358493133,1745209851152,-956.36935609,0.00063014,120]
[358493134,1745209851161,-956.36935609,0.00063014,120]
[358493135,1745209851170,-956.36935609,0.00063014,120]
[358493136,1745209851180,-956.36935609,0.00063014,120]
[358493137,1745209851287,-956.36935609,0.00063014,120]
[358493138,1745209851297,-956.36935609,0.00063014,120]
[358493139,1745209851307,-956.36935609,0.00063014,120]
[358493140,1745209851316,-956.36935609,0.00063014,120]
[358493141,1745209851326,-956.36935609,0.00063014,120]
[358493142,1745209851335,-956.36935609,0.00063014,120]
[358493143,1745209851344,-956.36935609,0.00063014,120]
[358493144,1745209851354,-956.36935609,0.00063014,120]
[358493145,1745209851364,-956.36935609,0.00063014,120]
[358493146,1745209851373,-956.36935609,0.00063014,120]
[358493147,1745209851383,-956.36935609,0.00063014,120]
[358493148,1745209851393,-956.36935609,0.00063014,120]
[358493149,1745209851403,-956.36935609,0.00063014,120]
[358493150,1745209851412,-956.36935609,0.00063014,120]
[358493151,1745209851422,-956.36935609,0.00063014,120]
[358493152,1745209851431,-956.36935609,0.00063014,120]
[358493153,1745209851441,-956.36935609,0.00063014,120]
[358493154,1745209851450,-956.36935609,0.00063014,120]
[358493155,1745209851460,-956.36935609,0.00063014,120]
[358493156,1745209851470,-956.36935609,0.00063014,120]
[358493157,1745209851480,-956.36935609,0.00063014,120]
[358493158,1745209851490,-956.36935609,0.00063014,120]
[358493159,1745209851499,-956.36935609,0.00063014,120]
[358493160,1745209851509,-956.36935609,0.00063014,120]
[358493161,1745209851519,-956.36935609,0.00063014,120]
[358493162,1745209851529,-956.36935609,0.00063014,120]
[358493163,1745209851539,-956.36935609,0.00063014,120]
[358493164,1745209851548,-956.36935609,0.00063014,120]
[358493165,1745209851558,-956.36935609,0.00063014,120]
[358493166,1745209851568,-956.36935609,0.00063014,120]
[358493167,1745209851577,-956.36935609,0.00063014,120]
[358493168,1745209851588,-956.36935609,0.00063014,120]
[358493169,1745209851598,-956.36935609,0.00063014,120]
[358493170,1745209851608,-956.36935609,0.00063014,120]
[358493171,1745209851617,-956.36935609,0.00063014,120]
[358493172,1745209851627,-956.36935609,0.00063014,120]
[358493173,1745209851636,-1969.10806399,0.00063014,120]
[358493174,1745209851646,-1969.10806399,0.00063014,120]
[358493175,1745209851655,-1969.10806399,0.00063014,120]
[358493176,1745209851665,-1969.10806399,0.00063014,120]
[358493177,1745209851674,-1969.10806399,0.00063014,120]
[358493178,1745209851684,-1969.10806399,0.00063014,120]
[358493179,1745209851693,-1969.10806399,0.00063014,120]
[358493180,1745209851702,-1969.10806399,0.00063014,120]
[358493181,1745209851712,-1969.10806399,0.00063014,120]
[358493182,1745209851722,-1969.10806399,0.00063014,120]
[358493183,1745209851731,-1969.10806399,0.00063014,120]
[358493184,1745209851741,-1969.10806399,0.00063014,120]
[358493185,1745209851751,-1969.10806399,0.00063014,120]
[358493186,1745209851760,-1969.10806399,0.00063014,120]
[358493187,1745209851769,-1969.10806399,0.00063014,120]
[358493188,1745209851778,-1969.10806399,0.00063014,120]
[358493189,1745209851787,-1969.10806399,0.00063014,120]
[358493190,1745209851797,-1969.10806399,0.00063014,120]
[358493191,1745209851807,-1969.10806399,0.00063014,120]
[358493192,1745209851816,-1969.10806399,0.00063014,120]
[358493193,1745209851826,-1969.10806399,0.00063014,120]
[358493194,1745209851835,-1969.10806399,0.00063014,120]
[358493195,1745209851845,-1969.10806399,0.00063014,120]
[358493196,1745209851854,-1969.10806399,0.00063014,120]
[358493197,1745209851863,-1969.10806399,0.00063014,120]
[358493198,1745209851873,-1969.10806399,0.00063014,120]
[358493199,1745209851882,-1969.10806399,0.00063014,120]
[358493200,1745209851891,-1969.10806399,0.00063014,120]
[358493201,1745209851901,-1969.10806399,0.00063014,120]
[358493202,1745209851910,-1969.10806399,0.00063014,120]
[358493203,1745209851920,-1969.10806399,0.00063014,120]
[358493204,1745209851930,-1969.10806399,0.00063014,120]
[358493205,1745209851939,-1969.10806399,0.00063014,120]
[358493206,1745209851948,-1987.34054609,0.00063014,120]
[358493207,1745209851958,-1987.34054609,0.00063014,120]
[358493208,1745209851968,-1987.34054609,0.00063014,120]
[358493209,1745209851978,-1987.34054609,0.00063014,120]
[358493210,1745209851987,-1987.34054609,0.00063014,120]
[358493211,1745209851997,-1987.34054609,0.00063014,120]
[358493212,1745209852008,-4085.28701048,0.00063067,15]
[358493213,1745209852018,-178.93418074,0.00063184,16]
[358493214,1745209852028,-166.67,0.00063283,2]
[358493215,1745209852037,-153.0,0.00063393,60]
[358493216,1745209852048,-153.0,0.00063407,60]
[358493217,1745209852057,-983.859,0.000635,120]
[358493218,1745209852067,-150.0,0.00063503,120]
[358493219,1745209852078,-800.0,0.00063509,120]
[358493220,1745209852088,-1000.0,0.0006355,2]
[358493221,1745209852097,-837.0,0.0006355,120]
[358493222,1745209852106,-151.0,0.00063551,120]
[358493223,1745209852115,-1000.0,0.0006356,2]
[358493224,1745209852125,-837.0,0.0006356,120]
[358493225,1745209852134,-500.0,0.0006356,60]
[358493226,1745209852143,-500.0,0.00063561,120]
[358493227,1745209852153,-503.81515436,0.00063561,3]
[358493228,1745209852162,-500.0,0.00063561,120]
[358493229,1745209852172,-534.22794685,0.00063561,120]
[358493230,1745209852182,-500.0,0.00063561,120]
[358493231,1745209852191,-512.69045638,0.00063561,120]
[358493232,1745209852201,-517.07906823,0.00063561,120]
[358493233,1745209852210,-500.0,0.00063561,120]
[358493234,1745209852219,-500.0,0.00063561,120]
[358493235,1745209852229,-533.74507245,0.00063561,120]
[358493236,1745209852238,-500.0,0.00063561,30]
[358493237,1745209852248,-500.0,0.00063561,120]
[358493238,1745209852258,-520.56931947,0.00063561,120]
[358493239,1745209852267,-328.37236495,0.00063561,120]
[358493240,1745209852277,-500.0,0.00063561,120]
[358493241,1745209852286,-500.0,0.00063561,120]
[358493242,1745209852296,-537.94666395,0.00063561,120]
[358493243,1745209852305,-500.0,0.00063561,120]
[358493244,1745209852315,-500.0,0.00063561,120]
[358493245,1745209852324,-500.0,0.00063561,120]
[358493246,1745209852333,-367.71660822,0.00063561,120]
[358493247,1745209852343,-529.70340334,0.00063561,120]
[358493248,1745209852352,-500.0,0.00063561,120]
[358493249,1745209852362,-500.0,0.00063561,120]
[358493250,1745209852371,-500.0,0.00063561,120]
[358493251,1745209852381,-521.23955638,0.00063561,120]
[358493252,1745209852390,-309.00006993,0.00063561,120]
[358493253,1745209852400,-500.0,0.00063561,120]
[358493254,1745209852410,-500.0,0.00063561,120]
[358493255,1745209852419,-500.0,0.00063561,120]
[358493256,1745209852428,-500.0,0.00063561,120]
[358493257,1745209852438,-500.0,0.00063561,120]
[358493258,1745209852447,-500.0,0.00063561,120]
[358493259,1745209852456,-516.9547394,0.00063561,120]
[358493260,1745209852467,-519.26554101,0.00063561,120]
[358493261,1745209852476,-500.0,0.00063561,120]
[358493262,1745209852485,-518.2041252,0.00063561,120]
[358493263,1745209852495,-521.67752514,0.00063561,120]
[358493264,1745209852504,-515.83461359,0.00063561,120]
[358493265,1745209852514,-500.0,0.00063561,120]
[358493266,1745209852523,-508.60486875,0.00063561,120]
[358493267,1745209852533,-609.32910063,0.00063561,120]
[358493268,1745209852542,-500.0,0.00063561,120]
[358493269,1745209852551,-605.39,0.00063561,120]
[358493270,1745209852561,-151.0,0.00063561,120]
[358493271,1745209852570,-519.51290239,0.00063561,120]
[358493272,1745209852580,-535.29724563,0.00063561,120]
[358493273,1745209852591,-503.15699757,0.00063561,120]
[358493274,1745209852601,-1040.07,0.00063561,120]
[358493275,1745209852610,-500.0,0.00063561,120]
[358493276,1745209852620,-505.58410932,0.00063561,120]
[358493277,1745209852629,-541.41976078,0.00063561,120]
[358493278,1745209852639,-683.2,0.00063561,120]
[358493279,1745209852648,-500.0,0.00063561,120]
[358493280,1745209852657,-500.0,0.00063561,120]
[358493281,1745209852667,-522.8701522,0.00063561,120]
[358493282,1745209852676,-500.0,0.00063561,120]
[358493283,1745209852685,-150.36185698,0.00063561,120]
[358493284,1745209852695,-500.0,0.00063561,120]
[358493285,1745209852704,-498.9050765,0.00063561,120]
[358493286,1745209852714,-500.0,0.00063561,120]
[358493287,1745209852723,-500.0,0.00063561,120]
[358493288,1745209852734,-500.0,0.00063561,120]
[358493289,1745209852743,-513.58720899,0.00063561,120]
[358493290,1745209852752,-586.55178743,0.00063561,120]
[358493291,1745209852762,-500.0,0.00063561,120]
[358493292,1745209852771,-500.0,0.00063561,120]
[358493293,1745209852780,-500.0,0.00063561,2]
[358493294,1745209852790,-603.93396961,0.00063561,120]
[358493295,1745209852799,-569.27430446,0.00063561,120]
[358493296,1745209852808,-500.0,0.00063561,120]
[358493297,1745209852818,-518.89745351,0.00063561,120]
[358493298,1745209852827,-537.21312342,0.00063561,120]
[358493299,1745209852835,-573.3393774,0.00063561,120]
[358493300,1745209852845,-500.0,0.00063561,120]
[358493301,1745209852854,-500.0,0.00063561,2]
[358493302,1745209852864,-500.0,0.00063561,120]
[358493303,1745209852873,-1063.09483655,0.00063561,120]
[358493304,1745209852882,-500.0,0.00063561,120]
[358493305,1745209852891,-151.0,0.00063561,120]
[358493306,1745209852901,-544.45326247,0.00063561,120]
[358493307,1745209852911,-327.64582506,0.00063561,120]
[358493308,1745209852920,-500.0,0.00063561,120]
[358493309,1745209852929,-500.0,0.00063561,120]
[358493310,1745209852939,-581.04283233,0.00063561,120]
[358493311,1745209852949,-500.0,0.00063561,120]
[358493312,1745209852958,-500.0,0.00063561,120]
[358493313,1745209852968,-500.0,0.00063561,120]
[358493314,1745209852977,-500.0,0.00063561,120]
[358493315,1745209852987,-401.82341345,0.00063561,120]
[358493316,1745209852997,-500.0,0.00063561,120]
[358493317,1745209853008,-500.0,0.00063561,120]
[358493318,1745209853107,-500.0,0.00063561,30]
[358493319,1745209853117,-568.47154829,0.00063561,120]
[358493320,1745209853127,-684.87,0.00063561,120]
[358493321,1745209853137,-499.50240835,0.00063561,120]
[358493322,1745209853147,-524.39297805,0.00063561,120]
[358493323,1745209853156,-546.46055953,0.00063561,120]
[358493324,1745209853165,-500.0,0.00063561,120]
[358493325,1745209853175,-540.21154912,0.00063561,120]
[358493326,1745209853184,-500.0,0.00063561,120]
[358493327,1745209853193,-500.0,0.00063561,120]
[358493328,1745209853203,-500.0,0.00063561,120]
[358493329,1745209853212,-313.92674649,0.00063561,120]
[358493330,1745209853222,-500.0,0.00063561,120]
[358493331,1745209853231,-571.92965288,0.00063561,120]
[358493332,1745209853241,-534.70291835,0.00063561,120]
[358493333,1745209853251,-537.17101068,0.00063561,120]
[358493334,1745209853260,-1151.8,0.00063561,120]
[358493335,1745209853270,-500.0,0.00063561,120]
[358493336,1745209853279,-500.0,0.00063561,120]
[358493337,1745209853289,-541.43599634,0.00063561,120]
[358493338,1745209853298,-500.0,0.00063561,120]
[358493339,1745209853307,-523.14310518,0.00063561,120]
[358493340,1745209853317,-500.0,0.00063561,120]
[358493341,1745209853326,-526.49566515,0.00063561,120]
[358493342,1745209853335,-500.0,0.00063561,120]
[358493343,1745209853345,-2160.04,0.00063561,120]
[358493344,1745209853354,-999.0,0.00063561,120]
[358493345,1745209853364,-585.93948652,0.00063561,120]
[358493346,1745209853373,-500.0,0.00063561,120]
[358493347,1745209853382,-541.04823789,0.00063561,120]
[358493348,1745209853392,-962.23,0.00063561,120]
[358493349,1745209853401,-773.14,0.00063561,120]
[358493350,1745209853411,-519.72137447,0.00063561,120]
[358493351,1745209853420,-528.858239,0.00063561,120]
[358493352,1745209853429,-541.93545782,0.00063561,120]
[358493353,1745209853439,-507.43995468,0.00063561,120]
[358493354,1745209853448,-218.58187102,0.00063561,120]
[358493355,1745209853458,-598.68,0.00063561,120]
[358493356,1745209853468,-473.59957733,0.00063561,120]
[358493357,1745209853477,-500.0,0.00063561,120]
[358493358,1745209853486,-585.24399957,0.00063561,120]
[358493359,1745209853496,-906.87,0.00063561,120]
[358493360,1745209853505,-578.63,0.00063561,120]
[358493361,1745209853515,-535.74546812,0.00063561,120]
[358493362,1745209853525,-500.0,0.00063561,120]
[358493363,1745209853534,-500.0,0.00063561,120]
[358493364,1745209853543,-569.12755376,0.00063561,120]
[358493365,1745209853552,-645.4658013,0.00063561,120]
[358493366,1745209853562,-500.0,0.00063561,120]
[358493367,1745209853571,-499.78399596,0.00063561,120]
[358493368,1745209853580,-500.0,0.00063561,120]
[358493369,1745209853590,-500.0,0.00063561,120]
[358493370,1745209853599,-500.0,0.00063561,120]
[358493371,1745209853609,-500.0,0.00063561,120]
[358493372,1745209853619,-535.46998752,0.00063561,120]
[358493373,1745209853628,-500.0,0.00063561,120]
[358493374,1745209853637,-500.0,0.00063561,120]
[358493375,1745209853646,-500.0,0.00063561,120]
[358493376,1745209853655,-500.00877615,0.00063561,120]
[358493377,1745209853665,-566.5592586,0.00063561,120]
[358493378,1745209853674,-525.43364993,0.00063561,120]
[358493379,1745209853683,-518.21357438,0.00063561,120]
[358493380,1745209853692,-522.99453227,0.00063561,120]
[358493381,1745209853701,-304.53576256,0.00063561,120]
[358493382,1745209853710,-558.50216803,0.00063561,120]
[358493383,1745209853720,-500.0,0.00063561,120]
[358493384,1745209853730,-500.0,0.00063561,120]
[358493385,1745209853739,-531.5378822,0.00063561,120]
[358493386,1745209853748,-500.0,0.00063561,120]
[358493387,1745209853757,-151.0,0.00063561,120]
[358493388,1745209853766,-781.23,0.00063561,120]
[358493389,1745209853775,-218.41285062,0.00063561,120]
[358493390,1745209853784,-500.0,0.00063561,120]
[358493391,1745209853793,-261.28806023,0.00063561,120]
[358493392,1745209853803,-500.0,0.00063561,120]
[358493393,1745209853811,-500.0,0.00063561,120]
[358493394,1745209853821,-500.0,0.00063561,120]
[358493395,1745209853830,-516.79605235,0.00063561,120]
[358493396,1745209853839,-500.0,0.00063561,120]
[358493397,1745209853848,-500.0,0.00063561,120]
[358493398,1745209853858,-517.045437,0.00063561,120]
[358493399,1745209853867,-500.0,0.00063561,120]
[358493400,1745209853876,-500.0,0.00063561,120]
[358493401,1745209853886,-500.0,0.00063561,120]
[358493402,1745209853895,-500.0,0.00063561,120]
[358493403,1745209853905,-500.0,0.00063561,120]
[358493404,1745209853914,-500.0,0.00063561,120]
[358493405,1745209853923,-213.70876054,0.00063561,120]
[358493406,1745209853933,-500.0,0.00063561,120]
[358493407,1745209853942,-500.0,0.00063561,120]
[358493408,1745209853952,-529.75994842,0.00063561,120]
[358493409,1745209853961,-500.0,0.00063561,120]
[358493410,1745209853970,-500.0,0.00063561,120]
[358493411,1745209853979,-500.0,0.00063561,120]
[358493412,1745209853989,-500.0,0.00063561,120]
[358493413,1745209854000,-500.0,0.00063561,120]
[358493414,1745209854010,-500.0,0.00063561,120]
[358493415,1745209854020,-544.01064249,0.00063561,120]
[358493416,1745209854029,-504.87959979,0.00063561,120]
[358493417,1745209854039,-500.0,0.00063561,120]
[358493418,1745209854049,-500.0,0.00063561,120]
[358493419,1745209854059,-515.65640275,0.00063561,120]
[358493420,1745209854068,-500.0,0.00063561,120]
[358493421,1745209854080,-500.0,0.00063561,120]
[358493422,1745209854090,-500.0,0.00063561,120]
[358493423,1745209854100,-500.0,0.00063561,120]
[358493424,1745209854109,-500.0,0.00063561,120]
[358493425,1745209854119,-500.0,0.00063561,120]
[358493426,1745209854128,-500.0,0.00063561,10]
[358493427,1745209854137,-500.0,0.00063561,120]
[358493428,1745209854146,-500.0,0.00063561,120]
[358493429,1745209854156,-508.35,0.00063561,120]
[358493430,1745209854166,-500.0,0.00063561,120]
[358493431,1745209854175,-500.0,0.00063561,120]
[358493432,1745209854185,-500.0,0.00063561,120]
[358493433,1745209854194,-500.0,0.00063561,120]
[358493434,1745209854203,-556.18458788,0.00063561,120]
[358493435,1745209854212,-500.0,0.00063561,120]
[358493436,1745209854221,-500.0,0.00063561,120]
[358493437,1745209854231,-500.0,0.00063561,120]
[358493438,1745209854239,-500.0,0.00063561,120]
[358493439,1745209854248,-500.0,0.00063561,120]
[358493440,1745209854258,-500.0,0.00063561,120]
[358493441,1745209854267,-514.51460321,0.00063561,120]
[358493442,1745209854276,-500.0,0.00063561,120]
[358493443,1745209854285,-500.0,0.00063561,20]
[358493444,1745209854295,-500.0,0.00063561,120]
[358493445,1745209854304,-803.87,0.00063561,120]
[358493446,1745209854313,-500.0,0.00063561,120]
[358493447,1745209854323,-500.0,0.00063561,120]
[358493448,1745209854332,-500.0,0.00063561,120]
[358493449,1745209854341,-500.0,0.00063561,120]
[358493450,1745209854351,-513.61789082,0.00063561,120]
[358493451,1745209854360,-500.0,0.00063561,120]
[358493452,1745209854369,-741.4,0.00063561,120]
[358493453,1745209854379,-500.0,0.00063561,120]
[358493454,1745209854388,-500.0,0.00063561,120]
[358493455,1745209854397,-512.16256553,0.00063561,120]
[358493456,1745209854407,-500.0,0.00063561,120]
[358493457,1745209854416,-500.0,0.00063561,120]
[358493458,1745209854425,-528.43476039,0.00063561,120]
[358493459,1745209854435,-500.0,0.00063561,120]
[358493460,1745209854444,-500.0,0.00063561,120]
[358493461,1745209854453,-500.0,0.00063561,120]
[358493462,1745209854463,-151.0,0.00063561,120]
[358493463,1745209854472,-500.0,0.00063561,120]
[358493464,1745209854483,-500.0,0.00063561,120]
[358493465,1745209854493,-500.0,0.00063561,120]
[358493466,1745209854503,-500.0,0.00063561,120]
[358493467,1745209854512,-500.0,0.00063561,12]
[358493468,1745209854522,-500.0,0.00063561,120]
[358493469,1745209854531,-220.66444075,0.00063561,120]
[358493470,1745209854541,-500.0,0.00063561,118]
[358493471,1745209854551,-500.0,0.00063561,120]
[358493472,1745209854561,-318.53913071,0.00063561,120]
[358493473,1745209854570,-815.95,0.00063561,120]
[358493474,1745209854579,-661.79,0.00063561,120]
[358493475,1745209854588,-500.0,0.00063561,120]
[358493476,1745209854597,-500.0,0.00063561,120]
[358493477,1745209854606,-500.0,0.00063561,120]
[358493478,1745209854615,-533.45992021,0.00063561,120]
[358493479,1745209854625,-500.0,0.00063561,120]
[358493480,1745209854634,-541.89144895,0.00063561,120]
[358493481,1745209854643,-706.36,0.00063561,120]
[358493482,1745209854652,-500.0,0.00063561,120]
[358493483,1745209854662,-500.0,0.00063561,120]
[358493484,1745209854748,-500.0,0.00063561,14]
[358493485,1745209854764,-500.0,0.00063561,120]
[358493486,1745209854774,-500.0,0.00063561,120]
[358493487,1745209854785,-159.23535524,0.00063561,120]
[358493488,1745209854796,-500.0,0.00063561,30]
[358493489,1745209854806,-535.40354135,0.00063561,120]
[358493490,1745209854815,-633.38914167,0.00063561,120]
[358493491,1745209854824,-500.0,0.00063561,120]
[358493492,1745209854834,-1690.23,0.00063561,120]
[358493493,1745209854843,-534.44360631,0.00063561,120]
[358493494,1745209854853,-500.0,0.00063561,120]
[358493495,1745209854862,-500.0,0.00063561,120]
[358493496,1745209854872,-500.0,0.00063561,120]
[358493497,1745209854882,-247.5590564,0.00063561,120]
[358493498,1745209854891,-593.42920881,0.00063561,120]
[358493499,1745209854900,-500.0,0.00063561,120]
[358493500,1745209854910,-500.0,0.00063561,120]
[358493501,1745209854919,-500.0,0.00063561,120]
[358493502,1745209854929,-787.95,0.00063561,120]
[358493503,1745209854938,-279.7594348,0.00063561,120]
[358493504,1745209854947,-500.0,0.00063561,120]
[358493505,1745209854957,-211.62301897,0.00063561,120]
[358493506,1745209854967,-500.0,0.00063561,120]
[358493507,1745209854977,-531.31015193,0.00063561,120]
[358493508,1745209854986,-500.0,0.00063561,120]
[358493509,1745209854995,-513.30536507,0.00063561,120]
[358493510,1745209855010,-500.0,0.00063561,120]
[358493511,1745209855019,-500.0,0.00063561,120]
[358493512,1745209855028,-500.0,0.00063561,120]
[358493513,1745209855038,-500.0,0.00063561,120]
[358493514,1745209855047,-374.87106857,0.00063561,120]
[358493515,1745209855056,-500.0,0.00063561,120]
[358493516,1745209855065,-525.43083752,0.00063561,120]
[358493517,1745209855074,-500.0,0.00063561,120]